[Event "EYCC Open-U18 2019"]
[Site "Bratislava"]
[Date "2019.08.10"]
[Round "9.10"]
[White "Guerra Rivera, Salvador"]
[Black "Petriashvili, Nikoloz"]
[Result "1/2-1/2"]
[ECO "C60"]
[WhiteElo "2355"]
[BlackElo "2451"]
[Annotator "ChessBase"]
[PlyCount "95"]
[EventDate "2019.08.02"]
[EventType "swiss"]
[EventCountry "SVK"]
[SourceTitle "playchess.com"]
[Source "ChessBase"]
[SourceQuality "1"]
[TimeControl "40/5400+30:1800+30"]

1. e4 {[%emt 0:00:00]} e5 {[%emt 0:00:00]} 2. Nf3 {[%emt 0:00:02]} Nc6 {[%emt 0:00:00]} 3. Bb5 {[%emt 0:00:32]} g6 {[%emt 0:00:00]} 4. d4 {[%emt 0:01:36]} exd4 {[%emt 0:00:21]} 5. Bg5 {[%emt 0:00:14]} Be7 {[%emt 0:00:57]} 6. Bxe7 {[%emt 0:00:06]} Qxe7 {[%emt 0:00:12]} 7. Bxc6 {[%emt 0:00:08]} dxc6 {[%emt 0:01:08]} 8. Qxd4 {[%emt 0:00:08]} Nf6 {[%emt 0:00:06]} 9. Nc3 {[%emt 0:00:33]} Bg4 {[%emt 0:07:12]} 10. O-O-O {[%emt 0:01:18]} Bxf3 {[%emt 0:01:26]} 11. gxf3 {[%emt 0:00:04]} O-O {[%emt 0:00:12]} 12. Qe3 {[%emt 0:01:23]} Nh5 {[%emt 0:07:09]} 13. Ne2 {[%emt 0:01:19]} Rfd8 {[%emt 0:09:33]} 14. Ng3 {[%emt 0:09:10]} Qe5 {[%emt 0:01:19]} 15. Nxh5 {[%emt 0:00:22]} Qxh5 {[%emt 0:01:46]} 16. Qf4 {[%emt 0:00:15]} Rd6 {[%emt 0:09:09]} 17. h4 {[%emt 0:19:28]} Re8 {[%emt 0:06:17]} 18. Rhg1 {[%emt 0:06:10]} Qe5 {[%emt 0:09:30]} 19. Qxe5 {[%emt 0:01:49]} Rxe5 {[%emt 0:00:08]} 20. Rg5 {[%emt 0:00:18]} f5 {[%emt 0:00:04]} 21. Rdg1 {[%emt 0:05:20]} Kf7 {[%emt 0:01:00]} 22. h5 {[%emt 0:00:30]} c5 {[%emt 0:03:01]} 23. hxg6+ {[%emt 0:05:53]} hxg6 {[%emt 0:00:22]} 24. Rh1 {[%emt 0:01:37]} Kf6 {[%emt 0:01:14]} 25. Rhg1 {[%emt 0:00:10]} Kf7 {[%emt 0:00:04]} 26. Rh1 {[%emt 0:00:09]} Kg7 {[%emt 0:02:01]} 27. Rh4 {[%emt 0:03:35]} Rde6 {[%emt 0:03:30]} 28. exf5 {[%emt 0:04:36]} Rxf5 {[%emt 0:00:02]} 29. Rxf5 {[%emt 0:00:08]} gxf5 {[%emt 0:00:03]} 30. Kd2 {[%emt 0:00:17]} Kg6 {[%emt 0:00:35]} 31. f4 {[%emt 0:02:33]} Re4 {[%emt 0:04:21]} 32. b3 {[%emt 0:03:58]} c4 {[%emt 0:08:39]} 33. f3 {[%emt 0:00:59]} Rd4+ {[%emt 0:02:15]} 34. Kc3 {[%emt 0:00:12]} c5 {[%emt 0:00:14]} 35. bxc4 {[%emt 0:02:31]} Rd1 {[%emt 0:05:48]} 36. Kb2 {[%emt 0:01:30]} b6 {[%emt 0:04:34]} 37. a3 {[%emt 0:00:53]} Rd4 {[%emt 0:01:49]} 38. Kc3 {[%emt 0:00:17]} a6 {[%emt 0:01:37]} 39. a4 {[%emt 0:00:11]} a5 {[%emt 0:01:48]} 40. Kb3 {[%emt 0:00:00]} Rd1 {[%emt 0:00:00]} 41. Kb2 {[%emt 0:00:14]} Rd4 {[%emt 0:03:29]} 42. Kc3 {[%emt 0:00:04]} Rd1 {[%emt 0:02:38]} 43. Kb2 {[%emt 0:00:06]} Rd8 {[%emt 0:02:14]} 44. Kc3 {[%emt 0:00:29]} Rd1 {[%emt 0:03:16]} 45. Kb2 {[%emt 0:01:10]} Rf1 {[%emt 0:00:58]} 46. Rh3 {[%emt 0:00:04]} Rf2 {[%emt 0:03:57]} 47. Rg3+ {[%emt 0:00:16]} Kf6 {[%emt 0:00:18]} 48. Rh3 {[%emt 0:00:03] Ke5} 1/2-1/2

[Event "EYCC Open-U18 2019"]
[Site "Bratislava"]
[Date "2019.08.10"]
[Round "9.11"]
[White "Mitsis, Georgios"]
[Black "Chatzieleftheriou, Andreas"]
[Result "1/2-1/2"]
[ECO "D02"]
[WhiteElo "2399"]
[BlackElo "2208"]
[Annotator "NA"]
[PlyCount "76"]
[EventDate "2019.08.02"]
[EventType "swiss"]
[EventCountry "SVK"]
[SourceTitle "playchess.com"]
[Source "ChessBase"]
[SourceQuality "1"]
[TimeControl "40/5400+30:1800+30"]

1. d4 {[%emt 0:00:00]} d5 {[%emt 0:00:00]} 2. Nf3 {[%emt 0:00:00]} e6 {[%emt 0:00:00]} 3. g3 {[%emt 0:00:33]} Nf6 {[%emt 0:00:37]} 4. c4 {[%emt 0:00:35]} a6 {[%emt 0:01:00]} 5. Bg2 {[%emt 0:01:20]} dxc4 {[%emt 0:01:46]} 6. O-O {[%emt 0:03:59]} b5 {[%emt 0:02:22]} 7. Ne5 {[%emt 0:01:02]} c6 {[%emt 0:01:25]} 8. Bg5 {[%emt 0:06:54]} Bb7 {[%emt 0:05:14]} 9. Nc3 {[%emt 0:02:19]} Qb6 {[%emt 0:04:13]} 10. e4 {[%emt 0:01:02]} Nbd7 {[%emt 0:10:51]} 11. Be3 {[%emt 0:00:35]} Qc7 {[%emt 0:03:08]} 12. Nxd7 {[%emt 0:03:58]} Qxd7 {[%emt 0:01:28]} 13. Qe2 {[%emt 0:00:34]} Be7 {[%emt 0:01:38]} 14. Rad1 {[%emt 0:00:32]} O-O {[%emt 0:02:35]} 15. f4 {[%emt 0:00:29]} c5 {[%emt 0:09:05]} 16. dxc5 {[%emt 0:08:21]} Qc7 {[%emt 0:01:08]} 17. e5 {[%emt 0:18:56]} Bxg2 {[%emt 0:00:31]} 18. Kxg2 {[%emt 0:00:13]} Nd7 {[%emt 0:00:58]} 19. Ne4 {[%emt 0:00:14]} Nxc5 {[%emt 0:00:24]} 20. Bxc5 {[%emt 0:00:06]} Bxc5 {[%emt 0:00:05]} 21. h4 {[%emt 0:06:49]} Rad8 {[%emt 0:04:18]} 22. h5 {[%emt 0:00:06]} Be7 {[%emt 0:01:58]} 23. h6 {[%emt 0:00:10]} g6 {[%emt 0:01:32]} 24. g4 {[%emt 0:06:06]} Rxd1 {[%emt 0:00:31]} 25. Rxd1 {[%emt 0:00:07]} Rd8 {[%emt 0:00:07]} 26. Kg3 {[%emt 0:08:40]} Kf8 {[%emt 0:03:01]} 27. g5 {[%emt 0:00:19]} Rxd1 {[%emt 0:08:14]} 28. Qxd1 {[%emt 0:00:08]} Qc6 {[%emt 0:00:09]} 29. Qd4 {[%emt 0:02:28]} Ke8 {[%emt 0:12:49]} 30. Nf6+ {[%emt 0:07:35]} Bxf6 {[%emt 0:00:17]} 31. gxf6 {[%emt 0:00:04]} Qc7 {[%emt 0:04:37]} 32. Qe4 {[%emt 0:07:35]} Qc8 {[%emt 0:00:26]} 33. Qe3 {[%emt 0:00:26]} Qc7 {[%emt 0:00:23]} 34. Qf3 {[%emt 0:01:21]} Qc8 {[%emt 0:02:31]} 35. Qa3 {[%emt 0:01:16]} Qd7 {[%emt 0:00:09]} 36. Qxa6 {[%emt 0:00:50]} Qd3+ {[%emt 0:00:04]} 37. Kf2 {[%emt 0:00:48]} Qd2+ {[%emt 0:00:27]} 38. Kf3 {[%emt 0:00:07]} Qd3+ {[%emt 0:00:03]} 1/2-1/2

[Event "EYCC Open-U18 2019"]
[Site "Bratislava"]
[Date "2019.08.10"]
[Round "9.13"]
[White "Levitskiy, Andrey"]
[Black "Gatineau, Yovann"]
[Result "1/2-1/2"]
[ECO "C58"]
[WhiteElo "2280"]
[BlackElo "2364"]
[Annotator "NA"]
[PlyCount "21"]
[EventDate "2019.08.02"]
[EventType "swiss"]
[EventCountry "SVK"]
[SourceTitle "playchess.com"]
[Source "ChessBase"]
[SourceQuality "1"]
[TimeControl "40/5400+30:1800+30"]

1. e4 {[%emt 0:00:00]} e5 {[%emt 0:00:00]} 2. Nf3 {[%emt 0:00:00]} Nc6 {[%emt 0:00:01]} 3. Bc4 {[%emt 0:00:00]} Nf6 {[%emt 0:00:05]} 4. Ng5 {[%emt 0:03:07]} d5 {[%emt 0:00:08]} 5. exd5 {[%emt 0:00:04]} Na5 {[%emt 0:00:05]} 6. Bb5+ {[%emt 0:00:06]} Bd7 {[%emt 0:00:04]} 7. Qe2 {[%emt 0:04:21]} Be7 {[%emt 0:00:07]} 8. Nc3 {[%emt 0:04:34]} O-O {[%emt 0:01:43]} 9. Bxd7 {[%emt 0:05:36]} Qxd7 {[%emt 0:00:08]} 10. O-O {[%emt 0:02:17]} Rfe8 {[%emt 0:05:57]} 11. d3 {[%emt 0:22:35]} 1/2-1/2

[Event "EYCC Open-U18 2019"]
[Site "Bratislava"]
[Date "2019.08.10"]
[Round "9.14"]
[White "Baenziger, Fabian"]
[Black "Anghelus, Alin-Gabriel"]
[Result "1/2-1/2"]
[ECO "D31"]
[WhiteElo "2352"]
[BlackElo "2107"]
[Annotator "NA"]
[PlyCount "116"]
[EventDate "2019.08.02"]
[EventType "swiss"]
[EventCountry "SVK"]
[SourceTitle "playchess.com"]
[Source "ChessBase"]
[SourceQuality "1"]
[TimeControl "40/5400+30:1800+30"]

1. d4 {[%emt 0:00:00]} d5 {[%emt 0:00:00]} 2. c4 {[%emt 0:00:00]} e6 {[%emt 0:00:00]} 3. Nc3 {[%emt 0:00:10]} a6 {[%emt 0:00:00]} 4. cxd5 {[%emt 0:01:58]} exd5 {[%emt 0:00:03]} 5. Qb3 {[%emt 0:00:39]} Nc6 {[%emt 0:02:12]} 6. Nf3 {[%emt 0:00:14]} Nge7 {[%emt 0:01:23]} 7. Bf4 {[%emt 0:05:36]} Na5 {[%emt 0:03:43]} 8. Qa4+ {[%emt 0:02:29]} c6 {[%emt 0:00:06]} 9. e3 {[%emt 0:00:53]} b5 {[%emt 0:02:54]} 10. Qd1 {[%emt 0:02:39]} Bf5 {[%emt 0:02:10]} 11. Bd3 {[%emt 0:05:22]} Nc4 {[%emt 0:03:40]} 12. Bxf5 {[%emt 0:02:09]} Nxf5 {[%emt 0:00:08]} 13. Qc2 {[%emt 0:00:40]} Nh4 {[%emt 0:05:25]} 14. Nxh4 {[%emt 0:02:26]} Qxh4 {[%emt 0:00:07]} 15. O-O {[%emt 0:01:53]} Bd6 {[%emt 0:08:08]} 16. b3 {[%emt 0:02:21]} Bxf4 {[%emt 0:00:14]} 17. exf4 {[%emt 0:00:06]} Nb6 {[%emt 0:00:07]} 18. Nxd5 {[%emt 0:15:16]} cxd5 {[%emt 0:00:07]} 19. Qc6+ {[%emt 0:00:12]} Kf8 {[%emt 0:00:09]} 20. Qxb6 {[%emt 0:00:04]} h5 {[%emt 0:03:55]} 21. Rac1 {[%emt 0:08:43]} Rh6 {[%emt 0:07:11]} 22. Qb7 {[%emt 0:01:56]} Rd8 {[%emt 0:01:43]} 23. g3 {[%emt 0:01:24]} Qf6 {[%emt 0:00:58]} 24. Rc8 {[%emt 0:04:28]} Kg8 {[%emt 0:04:41]} 25. Rfc1 {[%emt 0:02:05]} Rxc8 {[%emt 0:02:05]} 26. Rxc8+ {[%emt 0:01:36]} Kh7 {[%emt 0:00:06]} 27. Qxd5 {[%emt 0:01:12]} Qe6 {[%emt 0:01:43]} 28. Qxe6 {[%emt 0:05:55]} Rxe6 {[%emt 0:00:05]} 29. Rc5 {[%emt 0:00:22]} Re1+ {[%emt 0:01:21]} 30. Kg2 {[%emt 0:00:03]} g6 {[%emt 0:00:04]} 31. a4 {[%emt 0:01:09]} Rd1 {[%emt 0:01:19]} 32. axb5 {[%emt 0:05:12]} axb5 {[%emt 0:00:04]} 33. Rxb5 {[%emt 0:00:05]} Rxd4 {[%emt 0:00:04]} 34. h4 {[%emt 0:00:06]} Rd2 {[%emt 0:00:06]} 35. f5 {[%emt 0:00:57]} Kg7 {[%emt 0:00:54]} 36. fxg6 {[%emt 0:00:05]} fxg6 {[%emt 0:00:04]} 37. Rb7+ {[%emt 0:00:39]} Kf6 {[%emt 0:00:40]} 38. b4 {[%emt 0:00:33]} Rb2 {[%emt 0:00:05]} 39. b5 {[%emt 0:00:26]} Rb3 {[%emt 0:00:13]} 40. b6 {[%emt 0:00:00]} Ke6 {[%emt 0:00:00]} 41. Rb8 {[%emt 0:01:20]} Kf7 {[%emt 0:00:48]} 42. Kf1 {[%emt 0:05:34]} Rb2 {[%emt 0:00:07]} 43. Ke1 {[%emt 0:01:47]} Kg7 {[%emt 0:00:12]} 44. b7 {[%emt 0:04:44]} Kh7 {[%emt 0:00:07]} 45. Kd1 {[%emt 0:00:09]} Kg7 {[%emt 0:00:12]} 46. Kc1 {[%emt 0:00:13]} Rb6 {[%emt 0:00:07]} 47. Kc2 {[%emt 0:00:19]} Rb5 {[%emt 0:00:08]} 48. f4 {[%emt 0:01:38]} Rb6 {[%emt 0:00:19]} 49. Kc3 {[%emt 0:02:31]} Rb1 {[%emt 0:00:14]} 50. f5 {[%emt 0:03:48]} gxf5 {[%emt 0:00:05]} 51. Kd4 {[%emt 0:00:37]} Rb2 {[%emt 0:01:09]} 52. Ke5 {[%emt 0:00:40]} Rb1 {[%emt 0:00:08]} 53. Kd6 {[%emt 0:00:54]} Rd1+ {[%emt 0:00:27]} 54. Ke6 {[%emt 0:00:03]} Re1+ {[%emt 0:00:53]} 55. Kd6 {[%emt 0:05:43]} Rd1+ {[%emt 0:00:05]} 56. Ke5 {[%emt 0:00:02]} Rb1 {[%emt 0:00:06]} 57. Kf4 {[%emt 0:04:12]} Rb5 {[%emt 0:00:17]} 58. Kg5 {[%emt 0:06:50]} f4+ {[%emt 0:00:06]} 1/2-1/2

[Event "EYCC Open-U18 2019"]
[Site "Bratislava"]
[Date "2019.08.10"]
[Round "9.16"]
[White "Heimisson, Hilmir Freyr"]
[Black "Van Foreest, Lucas"]
[Result "0-1"]
[ECO "E32"]
[WhiteElo "2279"]
[BlackElo "2521"]
[Annotator "ChessBase"]
[PlyCount "72"]
[EventDate "2019.08.02"]
[EventType "swiss"]
[EventCountry "SVK"]
[SourceTitle "playchess.com"]
[Source "ChessBase"]
[SourceQuality "1"]
[TimeControl "40/5400+30:1800+30"]

1. d4 {[%emt 0:00:00]} Nf6 {[%emt 0:00:00]} 2. c4 {[%emt 0:00:00]} e6 {[%emt 0:00:00]} 3. Nc3 {[%emt 0:00:00]} Bb4 {[%emt 0:00:00]} 4. Qc2 {[%emt 0:00:00]} O-O {[%emt 0:00:04]} 5. Nf3 {[%emt 0:00:00]} d6 {[%emt 0:00:21]} 6. e3 {[%emt 0:01:11]} b6 {[%emt 0:05:21]} 7. Bd3 {[%emt 0:00:15]} Bb7 {[%emt 0:00:34]} 8. e4 {[%emt 0:00:09]} h6 {[%emt 0:13:36]} 9. O-O {[%emt 0:03:47]} Bxc3 {[%emt 0:01:29]} 10. bxc3 {[%emt 0:00:20]} Nc6 {[%emt 0:00:35]} 11. e5 {[%emt 0:32:32]} dxe5 {[%emt 0:04:39]} 12. dxe5 {[%emt 0:00:07]} Nd7 {[%emt 0:00:16]} 13. Ba3 {[%emt 0:00:08]} Ne7 {[%emt 0:10:01]} 14. Rad1 {[%emt 0:01:59]} c5 {[%emt 0:00:36]} 15. Rfe1 {[%emt 0:13:50]} Qc7 {[%emt 0:07:17]} 16. Qe2 {[%emt 0:00:46]} Bxf3 {[%emt 0:14:24]} 17. Qxf3 {[%emt 0:04:49]} Nxe5 {[%emt 0:05:41]} 18. Qg3 {[%emt 0:00:10]} f6 {[%emt 0:03:48]} 19. Bc1 {[%emt 0:00:41]} Nf5 {[%emt 0:02:02]} 20. Bxf5 {[%emt 0:08:00]} exf5 {[%emt 0:00:03]} 21. Bxh6 {[%emt 0:00:56]} Qf7 {[%emt 0:00:41]} 22. Bf4 {[%emt 0:10:11]} Nxc4 {[%emt 0:00:20]} 23. h4 {[%emt 0:04:17]} Rfe8 {[%emt 0:00:44]} 24. Qh3 {[%emt 0:01:10]} Nb2 {[%emt 0:07:42]} 25. Rb1 {[%emt 0:02:12]} Rxe1+ {[%emt 0:00:10]} 26. Rxe1 {[%emt 0:00:01]} Qd7 {[%emt 0:01:14]} 27. h5 {[%emt 0:06:01]} Nd3 {[%emt 0:01:13]} 28. Rd1 {[%emt 0:00:09]} Rd8 {[%emt 0:00:56]} 29. Qg3 {[%emt 0:00:33]} c4 {[%emt 0:00:56]} 30. Qg6 {[%emt 0:05:59]} Qf7 {[%emt 0:03:42]} 31. Qxf5 {[%emt 0:00:21]} Rd5 {[%emt 0:00:08]} 32. Qc8+ {[%emt 0:01:17]} Kh7 {[%emt 0:00:08]} 33. Be3 {[%emt 0:01:37]} Qxh5 {[%emt 0:00:13]} 34. g4 {[%emt 0:01:18]} Qh3 {[%emt 0:02:40]} 35. Qxc4 {[%emt 0:01:26]} Nf4 {[%emt 0:00:19]} 36. Qe4+ {[%emt 0:00:37]} f5 {[%emt 0:00:05]} 0-1

[Event "EYCC Open-U18 2019"]
[Site "Bratislava"]
[Date "2019.08.10"]
[Round "9.17"]
[White "Schoppen, Casper"]
[Black "Crevatin, Leo"]
[Result "1-0"]
[ECO "B33"]
[WhiteElo "2493"]
[BlackElo "2146"]
[Annotator "ChessBase"]
[PlyCount "65"]
[EventDate "2019.08.02"]
[EventType "swiss"]
[EventCountry "SVK"]
[SourceTitle "playchess.com"]
[Source "ChessBase"]
[SourceQuality "1"]
[TimeControl "40/5400+30:1800+30"]

1. e4 {[%emt 0:00:00]} c5 {[%emt 0:00:00]} 2. Nf3 {[%emt 0:00:00]} Nc6 {[%emt 0:00:00]} 3. d4 {[%emt 0:00:00]} cxd4 {[%emt 0:00:00]} 4. Nxd4 {[%emt 0:00:00]} Nf6 {[%emt 0:00:06]} 5. Nc3 {[%emt 0:00:00]} e5 {[%emt 0:00:04]} 6. Ndb5 {[%emt 0:00:08]} d6 {[%emt 0:00:03]} 7. Bg5 {[%emt 0:02:10]} a6 {[%emt 0:00:05]} 8. Na3 {[%emt 0:00:05]} b5 {[%emt 0:00:05]} 9. Bxf6 {[%emt 0:02:48]} gxf6 {[%emt 0:00:34]} 10. Nd5 {[%emt 0:00:05]} f5 {[%emt 0:00:04]} 11. Bd3 {[%emt 0:06:10]} Be6 {[%emt 0:00:21]} 12. O-O {[%emt 0:00:21]} Bxd5 {[%emt 0:02:34]} 13. exd5 {[%emt 0:00:56]} Ne7 {[%emt 0:00:01]} 14. c3 {[%emt 0:02:19]} Bg7 {[%emt 0:00:50]} 15. Re1 {[%emt 0:05:47]} O-O {[%emt 0:03:39]} 16. Bf1 {[%emt 0:00:03]} Ng6 {[%emt 0:06:52]} 17. Nc2 {[%emt 0:06:41]} Rb8 {[%emt 0:06:19]} 18. Nb4 {[%emt 0:10:06]} Qb6 {[%emt 0:03:45]} 19. a4 {[%emt 0:04:14]} e4 {[%emt 0:15:12]} 20. a5 {[%emt 0:25:10]} Qb7 {[%emt 0:02:27]} 21. Qh5 {[%emt 0:01:04]} Ne7 {[%emt 0:01:15]} 22. Rad1 {[%emt 0:00:17]} Rbc8 {[%emt 0:02:51]} 23. g3 {[%emt 0:03:19]} Qc7 {[%emt 0:13:41]} 24. Bh3 {[%emt 0:03:23]} Qxa5 {[%emt 0:02:11]} 25. Ra1 {[%emt 0:01:12]} Qc7 {[%emt 0:04:31]} 26. Rxa6 {[%emt 0:04:22]} Bxc3 {[%emt 0:03:35]} 27. bxc3 {[%emt 0:01:07]} Qxc3 {[%emt 0:00:02]} 28. Qg5+ {[%emt 0:03:50]} Ng6 {[%emt 0:02:15]} 29. Rb1 {[%emt 0:00:18]} Rc4 {[%emt 0:01:31]} 30. Nc6 {[%emt 0:00:52]} h6 {[%emt 0:01:39]} 31. Ne7+ {[%emt 0:04:16]} Kh7 {[%emt 0:00:13]} 32. Qxf5 {[%emt 0:00:05]} Qe5 {[%emt 0:01:25]} 33. Nxg6 {[%emt 0:00:21]} 1-0

[Event "EYCC Open-U18 2019"]
[Site "Bratislava"]
[Date "2019.08.10"]
[Round "9.18"]
[White "Boev, Viktor"]
[Black "Blohberger, Felix"]
[Result "1-0"]
[ECO "B51"]
[WhiteElo "2246"]
[BlackElo "2476"]
[Annotator "ChessBase"]
[PlyCount "61"]
[EventDate "2019.08.02"]
[EventType "swiss"]
[EventCountry "SVK"]
[SourceTitle "playchess.com"]
[Source "ChessBase"]
[SourceQuality "1"]
[TimeControl "40/5400+30:1800+30"]

1. e4 {[%emt 0:00:00]} c5 {[%emt 0:00:00]} 2. Nf3 {[%emt 0:00:09]} d6 {[%emt 0:00:00]} 3. Bb5+ {[%emt 0:00:06]} Nc6 {[%emt 0:00:34]} 4. O-O {[%emt 0:00:08]} Bd7 {[%emt 0:00:15]} 5. Re1 {[%emt 0:00:22]} Nf6 {[%emt 0:00:05]} 6. h3 {[%emt 0:01:10]} a6 {[%emt 0:06:32]} 7. Bc4 {[%emt 0:06:22]} e6 {[%emt 0:02:13]} 8. c3 {[%emt 0:02:15]} Be7 {[%emt 0:01:57]} 9. d4 {[%emt 0:02:10]} cxd4 {[%emt 0:02:40]} 10. cxd4 {[%emt 0:00:23]} Nxe4 {[%emt 0:02:41]} 11. Rxe4 {[%emt 0:00:06]} d5 {[%emt 0:00:04]} 12. Rg4 {[%emt 0:00:32]} dxc4 {[%emt 0:01:40]} 13. Rxg7 {[%emt 0:00:05]} Bf6 {[%emt 0:02:25]} 14. Bg5 {[%emt 0:05:25]} Kf8 {[%emt 0:07:54]} 15. Bxf6 {[%emt 0:00:08]} Qxf6 {[%emt 0:00:05]} 16. Rg3 {[%emt 0:06:07]} Rg8 {[%emt 0:06:22]} 17. Nc3 {[%emt 0:05:46]} Rxg3 {[%emt 0:10:14]} 18. fxg3 {[%emt 0:00:06]} Rd8 {[%emt 0:00:44]} 19. Qd2 {[%emt 0:04:21]} Be8 {[%emt 0:06:58]} 20. Rd1 {[%emt 0:00:46]} Ne7 {[%emt 0:03:49]} 21. Ne5 {[%emt 0:01:40]} b5 {[%emt 0:03:21]} 22. Ne4 {[%emt 0:02:16]} Qg7 {[%emt 0:05:16]} 23. Qb4 {[%emt 0:03:58]} a5 {[%emt 0:05:18]} 24. Qc5 {[%emt 0:00:24]} f5 {[%emt 0:04:54]} 25. Nd6 {[%emt 0:03:26]} Qxg3 {[%emt 0:04:34]} 26. Nxe8 {[%emt 0:00:10]} Rxe8 {[%emt 0:02:56]} 27. Qd6 {[%emt 0:03:09]} Qg8 {[%emt 0:01:47]} 28. d5 {[%emt 0:01:07]} Kg7 {[%emt 0:03:33]} 29. dxe6 {[%emt 0:01:45]} Nc8 {[%emt 0:01:56]} 30. Qd7+ {[%emt 0:10:22]} Re7 {[%emt 0:03:00]} 31. Nc6 {[%emt 0:01:04]} 1-0

[Event "EYCC Open-U18 2019"]
[Site "Bratislava"]
[Date "2019.08.10"]
[Round "9.19"]
[White "Kukas, Oliver"]
[Black "Ludvik, Tomas"]
[Result "1/2-1/2"]
[ECO "A45"]
[WhiteElo "2082"]
[BlackElo "2334"]
[Annotator "NA"]
[PlyCount "58"]
[EventDate "2019.08.02"]
[EventType "swiss"]
[EventCountry "SVK"]
[SourceTitle "playchess.com"]
[Source "ChessBase"]
[SourceQuality "1"]
[TimeControl "40/5400+30:1800+30"]

1. d4 {[%emt 0:00:00]} Nf6 {[%emt 0:01:17]} 2. Bf4 {[%emt 0:00:00]} b6 {[%emt 0:01:31]} 3. Nf3 {[%emt 0:00:00]} Bb7 {[%emt 0:00:16]} 4. e3 {[%emt 0:00:03]} g6 {[%emt 0:01:03]} 5. h4 {[%emt 0:00:29]} Bg7 {[%emt 0:00:40]} 6. Nbd2 {[%emt 0:00:26]} c5 {[%emt 0:01:06]} 7. Nc4 {[%emt 0:02:02]} cxd4 {[%emt 0:06:46]} 8. exd4 {[%emt 0:00:13]} d6 {[%emt 0:00:40]} 9. Be2 {[%emt 0:02:33]} b5 {[%emt 0:05:29]} 10. Ne3 {[%emt 0:01:32]} Qa5+ {[%emt 0:02:08]} 11. c3 {[%emt 0:01:00]} Nbd7 {[%emt 0:04:49]} 12. a4 {[%emt 0:01:48]} bxa4 {[%emt 0:01:08]} 13. Nc4 {[%emt 0:04:15]} Qc7 {[%emt 0:01:16]} 14. Qxa4 {[%emt 0:03:51]} O-O {[%emt 0:01:12]} 15. O-O {[%emt 0:05:53]} Nb6 {[%emt 0:04:13]} 16. Nxb6 {[%emt 0:01:31]} axb6 {[%emt 0:01:20]} 17. Qb3 {[%emt 0:00:44]} Nd5 {[%emt 0:06:18]} 18. Bd2 {[%emt 0:03:37]} e5 {[%emt 0:07:34]} 19. Bc4 {[%emt 0:08:08]} Ne7 {[%emt 0:04:18]} 20. dxe5 {[%emt 0:04:02]} dxe5 {[%emt 0:09:08]} 21. Ng5 {[%emt 0:02:11]} Nc6 {[%emt 0:00:26]} 22. Rxa8 {[%emt 0:17:09]} Bxa8 {[%emt 0:00:15]} 23. Be2 {[%emt 0:01:11]} h6 {[%emt 0:05:53]} 24. Nf3 {[%emt 0:02:05]} e4 {[%emt 0:02:19]} 25. Nh2 {[%emt 0:01:20]} Na5 {[%emt 0:04:28]} 26. Qb4 {[%emt 0:03:57]} Rb8 {[%emt 0:02:50]} 27. Be3 {[%emt 0:03:26]} Bf8 {[%emt 0:02:13]} 28. Qd4 {[%emt 0:02:31]} Bg7 {[%emt 0:02:29]} 29. Qb4 {[%emt 0:00:52]} Bf8 {[%emt 0:07:54]} 1/2-1/2

[Event "EYCC Open-U18 2019"]
[Site "Bratislava"]
[Date "2019.08.10"]
[Round "9.20"]
[White "Garayev, Kanan"]
[Black "Godzwon, Iwo"]
[Result "1/2-1/2"]
[ECO "E20"]
[WhiteElo "2351"]
[BlackElo "2285"]
[Annotator "NA"]
[PlyCount "74"]
[EventDate "2019.08.02"]
[EventType "swiss"]
[EventCountry "SVK"]
[SourceTitle "playchess.com"]
[Source "ChessBase"]
[SourceQuality "1"]
[TimeControl "40/5400+30:1800+30"]

1. d4 {[%emt 0:00:00]} Nf6 {[%emt 0:00:00]} 2. c4 {[%emt 0:00:00]} e6 {[%emt 0:00:00]} 3. Nc3 {[%emt 0:00:00]} Bb4 {[%emt 0:00:00]} 4. g3 {[%emt 0:00:00]} c5 {[%emt 0:00:15]} 5. Nf3 {[%emt 0:00:00]} Ne4 {[%emt 0:04:49]} 6. Bd2 {[%emt 0:02:39]} Nxd2 {[%emt 0:01:07]} 7. Qxd2 {[%emt 0:00:02]} cxd4 {[%emt 0:06:44]} 8. Nxd4 {[%emt 0:00:45]} Nc6 {[%emt 0:00:02]} 9. Nc2 {[%emt 0:02:35]} Be7 {[%emt 0:00:56]} 10. Bg2 {[%emt 0:00:15]} O-O {[%emt 0:01:18]} 11. O-O {[%emt 0:00:07]} d6 {[%emt 0:05:10]} 12. Rfd1 {[%emt 0:01:55]} Qb6 {[%emt 0:00:04]} 13. e3 {[%emt 0:19:19]} Rd8 {[%emt 0:03:40]} 14. Rac1 {[%emt 0:09:35]} Bd7 {[%emt 0:02:38]} 15. Nd4 {[%emt 0:03:38]} a6 {[%emt 0:02:25]} 16. b3 {[%emt 0:11:27]} Qa7 {[%emt 0:03:54]} 17. Nxc6 {[%emt 0:03:36]} Bxc6 {[%emt 0:02:43]} 18. Qd4 {[%emt 0:04:59]} Qxd4 {[%emt 0:04:07]} 19. Rxd4 {[%emt 0:01:22]} Bf6 {[%emt 0:00:23]} 20. Rd2 {[%emt 0:00:14]} Bxc3 {[%emt 0:03:54]} 21. Rxc3 {[%emt 0:00:02]} Bxg2 {[%emt 0:00:54]} 22. Kxg2 {[%emt 0:00:02]} Kf8 {[%emt 0:00:05]} 23. e4 {[%emt 0:01:59]} Ke7 {[%emt 0:00:07]} 24. f4 {[%emt 0:02:03]} f6 {[%emt 0:12:48]} 25. Kf3 {[%emt 0:02:00]} Rac8 {[%emt 0:01:28]} 26. f5 {[%emt 0:02:58]} exf5 {[%emt 0:05:47]} 27. exf5 {[%emt 0:00:08]} Rc5 {[%emt 0:00:02]} 28. g4 {[%emt 0:03:47]} b6 {[%emt 0:00:28]} 29. Rd5 {[%emt 0:03:36]} Kd7 {[%emt 0:00:55]} 30. Kf4 {[%emt 0:02:02]} Rxd5 {[%emt 0:00:36]} 31. cxd5 {[%emt 0:00:01]} Rc8 {[%emt 0:00:03]} 32. Rxc8 {[%emt 0:06:26]} Kxc8 {[%emt 0:00:19]} 33. h4 {[%emt 0:01:30]} Kd7 {[%emt 0:00:06]} 34. g5 {[%emt 0:01:49]} Ke7 {[%emt 0:00:53]} 35. Kg4 {[%emt 0:01:35]} fxg5 {[%emt 0:02:31]} 36. hxg5 {[%emt 0:02:23]} g6 {[%emt 0:00:04]} 37. fxg6 {[%emt 0:00:36]} hxg6 {[%emt 0:00:03]} 1/2-1/2